[Event "HUN-chT Youth 2019"]
[Site "Budapest"]
[Date "2019.10.27"]
[Round "3.35"]
[White "Koltai, Anna"]
[Black "Giang, Tran Nam"]
[Result "0-1"]
[ECO "D02"]
[WhiteElo "1545"]
[BlackElo "2028"]
[Annotator "NA"]
[PlyCount "104"]
[EventDate "2019.10.26"]
[EventType "team-tourn"]
[EventCountry "HUN"]
[SourceTitle "playchess.com"]
[Source "ChessBase"]
[SourceQuality "1"]
[TimeControl "5400+30"]

1. d4 {[%emt 0:00:00]} d5 {[%emt 0:00:00]} 2. Nf3 {[%emt 0:00:00]} Nf6 {[%emt 0:00:00]} 3. Bf4 {[%emt 0:00:04]} c5 {[%emt 0:00:00]} 4. c3 {[%emt 0:00:52]} Qb6 {[%emt 0:00:38]} 5. b3 {[%emt 0:02:29]} Nc6 {[%emt 0:00:52]} 6. e3 {[%emt 0:00:53]} Bf5 {[%emt 0:01:12]} 7. Bd3 {[%emt 0:03:50]} Bxd3 {[%emt 0:00:56]} 8. Qxd3 {[%emt 0:00:14]} e6 {[%emt 0:00:26]} 9. Nbd2 {[%emt 0:01:16]} Be7 {[%emt 0:01:20]} 10. O-O {[%emt 0:00:32]} O-O {[%emt 0:00:41]} 11. h3 {[%emt 0:02:58]} Rfd8 {[%emt 0:02:23]} 12. Rfe1 {[%emt 0:03:31]} Rac8 13. Ne5 cxd4 {[%emt 0:05:19]} 14. exd4 {[%emt 0:04:19]} Nxe5 {[%emt 0:02:33]} 15. Bxe5 {[%emt 0:01:32]} Qa5 {[%emt 0:01:35]} 16. Rec1 {[%emt 0:03:20]} Rc6 {[%emt 0:05:51]} 17. Nf3 {[%emt 0:02:16]} Rdc8 {[%emt 0:00:51]} 18. c4 {[%emt 0:03:08]} Qa6 {[%emt 0:02:17]} 19. Nd2 {[%emt 0:07:19]} Nd7 {[%emt 0:00:46]} 20. Bf4 {[%emt 0:02:53]} Nb6 {[%emt 0:01:58]} 21. Qg3 {[%emt 0:04:35]} dxc4 {[%emt 0:02:17]} 22. bxc4 Nxc4 {[%emt 0:02:24]} 23. Nb3 {[%emt 0:07:27]} Nb6 {[%emt 0:00:00]} 24. Nc5 {[%emt 0:04:57]} Bxc5 {[%emt 0:07:15]} 25. dxc5 {[%emt 0:01:00]} Rxc5 {[%emt 0:02:05]} 26. Rd1 {[%emt 0:02:29]} Nd5 {[%emt 0:00:49]} 27. Bh6 {[%emt 0:01:52]} g6 {[%emt 0:00:58]} 28. Rdc1 {[%emt 0:04:00]} Rxc1+ {[%emt 0:00:51]} 29. Rxc1 {[%emt 0:01:23]} Rxc1+ {[%emt 0:00:34]} 30. Bxc1 {[%emt 0:00:09]} Qc6 {[%emt 0:04:12]} 31. Qb8+ {[%emt 0:01:28]} Kg7 {[%emt 0:00:16]} 32. Ba3 {[%emt 0:03:13]} Qc3 {[%emt 0:07:40]} 33. Bf8+ {[%emt 0:04:29]} Kf6 {[%emt 0:01:00]} 34. Qd8+ {[%emt 0:01:09]} Kf5 {[%emt 0:00:01]} 35. Qh4 {[%emt 0:00:30]} Qc1+ {[%emt 0:00:30]} 36. Kh2 {[%emt 0:00:30]} Qf4+ {[%emt 0:00:30]} 37. Qxf4+ {[%emt 0:00:30]} Kxf4 {[%emt 0:00:30]} 38. Bd6+ {[%emt 0:00:30]} Ke4 {[%emt 0:00:30]} 39. f3+ {[%emt 0:04:57]} Kd3 {[%emt 0:00:30]} 40. Bc5 {[%emt 0:00:30]} b6 {[%emt 0:00:30]} 41. Bd6 {[%emt 0:00:30]} Kc2 42. Kg1 {[%emt 0:00:30]} Kb2 {[%emt 0:01:00]} 43. a3 {[%emt 0:00:19]} Nc3 {[%emt 0:00:18]} 44. Be5 {[%emt 0:00:44]} Kb3 {[%emt 0:00:12]} 45. Kf2 {[%emt 0:00:34]} Nb5 {[%emt 0:00:10]} 46. a4 {[%emt 0:00:34]} Kxa4 {[%emt 0:00:08]} 47. Ke2 {[%emt 0:00:10]} Kb3 {[%emt 0:00:13]} 48. Kd2 {[%emt 0:00:10]} a5 {[%emt 0:00:13]} 49. Kc1 {[%emt 0:00:20]} a4 {[%emt 0:00:08]} 50. Kb1 {[%emt 0:00:37]} a3 {[%emt 0:00:11]} 51. g3 {[%emt 0:01:08]} a2+ {[%emt 0:00:06]} 52. Ka1 {[%emt 0:00:11]} Na3 {[%emt 0:00:06]} 0-1

[Event "HUN-chT Youth 2019"]
[Site "Budapest"]
[Date "2019.10.28"]
[Round "4.1"]
[White "Palczert, Matyas"]
[Black "Konyves, Almos"]
[Result "1-0"]
[ECO "B90"]
[WhiteElo "2009"]
[BlackElo "2006"]
[Annotator "NA RC"]
[PlyCount "71"]
[EventDate "2019.10.26"]
[EventType "team-tourn"]
[EventCountry "HUN"]
[SourceTitle "playchess.com"]
[Source "ChessBase"]
[SourceQuality "1"]
[TimeControl "5400+30"]

1. e4 {[%emt 0:01:35]} c5 {[%emt 0:00:00]} 2. Nf3 {[%emt 0:00:18]} d6 {[%emt 0:00:20]} 3. d4 cxd4 {[%emt 0:00:07]} 4. Nxd4 {[%emt 0:00:47]} Nf6 {[%emt 0:00:05]} 5. Nc3 {[%emt 0:00:07]} a6 {[%emt 0:00:12]} 6. Nb3 {[%emt 0:00:17]} e6 {[%emt 0:01:03] B90: Sicilian Najdorf: Unusual White 6th moves, 6 Be3 Ng4 and 6 Be3 e5} (6... Nbd7 7. Be3 h5 8. a4 g6 9. a5 Bg7 10. Be2 b5 11. axb6 Nxb6 12. h3 Qc7 13. Qd4 Rb8 14. Bxa6 {½-½ (31) Svidler,P (2729)-Vachier Lagrave,M (2774) Khanty-Mansiysk 2019}) 7. g4 {[%emt 0:00:37]} b5 {[%emt 0:00:20]} 8. g5 {[%emt 0:11:03]} Nfd7 {[%emt 0:00:58]} 9. Bg2 {[%emt 0:00:54]} Bb7 {[%emt 0:00:13]} 10. Be3 {[%emt 0:02:29]} Nc6 {[%emt 0:00:58]} 11. O-O {[%emt 0:01:34]} Nce5 {[%emt 0:08:18]} 12. Nd2 $146 {[%emt 0:02:58]} ({Predecessor:} 12. Kh1 h6 13. Qh5 Rc8 14. Nd4 g6 {0-1 (40) Tifferet,S (2243)-Rodshtein,M (2668) Israel 2019}) 12... b4 {[%emt 0:01:25]} 13. Ncb1 {[%emt 0:06:20]} (13. Na4 $11) 13... Nb6 {[%emt 0:05:11]} ({Black should try} 13... h6 $17 14. f4 Ng6) 14. f4 {[%emt 0:12:31]} Nec4 {[%emt 0:03:26]} 15. Nxc4 {[%emt 0:01:53]} Nxc4 {[%emt 0:00:07]} 16. Bc1 {[%emt 0:00:53]} Qb6+ {[%emt 0:01:52]} 17. Kh1 {[%emt 0:00:33]} g6 {[%emt 0:00:44]} 18. Qe2 {[%emt 0:04:02]} Rc8 {[%emt 0:04:04]} 19. f5 {[%emt 0:01:58]} gxf5 {[%emt 0:02:16]} 20. exf5 {[%emt 0:00:14]} Bxg2+ {[%emt 0:00:53]} 21. Qxg2 {[%emt 0:01:30]} Qc6 {[%emt 0:05:01]} 22. Qxc6+ {[%emt 0:02:19]} Rxc6 {[%emt 0:00:49]} 23. b3 {[%emt 0:01:50]} Nb6 {[%emt 0:01:51]} 24. a3 {[%emt 0:00:45]} bxa3 {[%emt 0:05:19]} 25. Rxa3 {[%emt 0:00:33]} Nd5 {[%emt 0:01:28]} 26. c4 {[%emt 0:00:49]} Nc7 {[%emt 0:01:48]} (26... Ne7 $5 {[%cal Re7f5]}) 27. Nd2 {[%emt 0:02:59]} d5 {[%emt 0:02:03]} 28. Ra4 {[%emt 0:04:43]} h6 {[%emt 0:09:50]} (28... exf5 $14 29. Bb2 (29. Rxf5 dxc4 30. Nxc4 Bg7 $16) 29... Rg8) 29. fxe6 {[%emt 0:04:14]} Rxe6 {[%emt 0:05:20]} 30. Nf3 {[%emt 0:01:57]} hxg5 {[%emt 0:00:45]} 31. Nxg5 {[%emt 0:00:56]} Re2 {[%emt 0:00:37]} 32. Bf4 {[%emt 0:00:37]} Ne6 {[%emt 0:01:31]} 33. Nxe6 {[%emt 0:00:34]} Rxe6 {[%emt 0:01:05]} 34. cxd5 {[%emt 0:00:34]} Rb6 {[%emt 0:00:12]} 35. Bc7 {[%emt 0:02:55]} Rb7 $18 {[%emt 0:03:16]} 36. Re4+ {[%emt 0:00:36]} 1-0

[Event "HUN-chT Youth 2019"]
[Site "Budapest"]
[Date "2019.10.28"]
[Round "4.2"]
[White "Leszko, Bence"]
[Black "Tancsa, Tamas"]
[Result "1-0"]
[ECO "C28"]
[WhiteElo "2201"]
[BlackElo "2082"]
[Annotator "NA"]
[PlyCount "129"]
[EventDate "2019.10.26"]
[EventType "team-tourn"]
[EventCountry "HUN"]
[SourceTitle "playchess.com"]
[Source "ChessBase"]
[SourceQuality "1"]
[TimeControl "5400+30"]

{[%evp 22,83,16,-8,14,17,15,0,28,25,40,54,97,37,56,0,0,-25,19,-8,0,-54,0,0,0,32767,0,0,0,0,0,0,0,-151,-172,-263,-255,-261,-266,-321,31,18,60,52,77,31,154,130,133,153,140,8,14,32767,18,47,83,58,100,32767,126,158,149,183]} 1. e4 {[%emt 0:00:00]} e5 {[%emt 0:00:00]} 2. Bc4 {[%emt 0:00:00]} Nc6 {[%emt 0:00:00]} 3. Nc3 {[%emt 0:00:00]} Nf6 {[%emt 0:00:11]} 4. d3 {[%emt 0:00:00]} Na5 {[%emt 0:00:34]} 5. Qf3 {[%emt 0:00:08]} d6 {[%emt 0:00:36]} (5... Nxc4 6. dxc4 Bb4 7. Nge2 d6 8. h3 Be6 9. b3 Nd7 10. O-O Bxc3 11. Nxc3 O-O 12. Qg3 f5 13. Bg5 {½-½ (33) Caruana,F (2822)-Aronian,L (2767) chess.com INT 2018}) 6. h3 {[%emt 0:00:09] C28: Vienna Game: 2...Nf6 3 Bc4 Nc6} Be7 {[%emt 0:00:59]} 7. Nge2 {[%emt 0:00:05]} Nxc4 {[%emt 0:00:23]} 8. dxc4 {[%emt 0:00:02]} Be6 {[%emt 0:00:14]} 9. b3 {[%emt 0:00:05]} Qd7 {[%emt 0:00:32]} 10. Be3 $146 {[%emt 0:00:11]} ({Predecessor:} 10. O-O Rg8 11. Ng3 g5 12. Nd5 Bxd5 13. cxd5 {0-1 (56) Lagunow,R (2403)-Nothnagel,M (2341) Wuerzburg 2018}) 10... c6 {[%emt 0:04:31]} 11. O-O {[%emt 0:00:41]} O-O {[%emt 0:03:16]} 12. Rad1 {[%emt 0:00:22]} Qc7 {[%emt 0:00:34]} 13. Ng3 {[%emt 0:03:02]} a6 {[%emt 0:03:50]} 14. Nf5 {[%emt 0:07:40]} Bxf5 {[%emt 0:01:37]} 15. exf5 {[%emt 0:03:41]} b5 {[%emt 0:01:16]} 16. g4 {[%emt 0:00:46]} b4 {[%emt 0:05:02]} 17. Ne2 {[%emt 0:04:40]} h6 {[%emt 0:03:05]} 18. h4 {[%emt 0:01:44]} Nh7 $1 {[%emt 0:00:14]} 19. Qh1 {[%emt 0:14:39]} Rad8 {[%emt 0:08:35]} 20. f4 {[%emt 0:03:59]} d5 {[%emt 0:01:47]} 21. g5 {[%emt 0:02:19]} exf4 {[%emt 0:00:20]} 22. Bxf4 {[%emt 0:04:30]} Qb6+ {[%emt 0:00:21]} 23. Kg2 {[%emt 0:00:17]} hxg5 {[%emt 0:02:12]} 24. hxg5 {[%emt 0:00:08]} Bxg5 {[%emt 0:06:03]} ({Of course not} 24... Nxg5 25. Qh2 $18) 25. Bxg5 {[%emt 0:00:19]} Nxg5 {[%emt 0:00:24]} 26. Qh4 {[%emt 0:11:40]} Qe3 {[%emt 0:00:31]} 27. Ng3 $2 {[%emt 0:00:08]} ({Only move:} 27. Nd4 $1 $11 dxc4 28. Rh1) 27... dxc4 {[%emt 0:00:50]} 28. Rde1 {[%emt 0:14:02]} (28. f6 $17 {was forced.} gxf6 29. Nf5 Qe2+ 30. Rf2 Qe4+ 31. Qxe4 Nxe4 32. Rxd8 Rxd8 33. Rf4 cxb3 34. axb3) 28... Rd2+ {[%emt 0:08:28]} 29. Kh1 {[%emt 0:00:05]} Rd4 {[%emt 0:00:21]} 30. Qh2 {[%emt 0:03:10]} Qc3 $2 {[%emt 0:00:21]} (30... Qd2 $19 31. bxc4 Qxh2+ 32. Kxh2 Rxc4) 31. Ne2 {[%emt 0:01:18]} Qd2 {[%emt 0:11:03]} 32. Nxd4 {[%emt 0:00:48]} Qxd4 {[%emt 0:00:05]} 33. Rf4 {[%emt 0:03:08]} (33. Qf4 $5 {[%cal Rf4d4]} Qf6 34. Re3 $14) 33... Qd5+ {[%emt 0:20:07]} (33... Qd6 $11) 34. Qg2 {[%emt 0:00:17]} cxb3 {[%emt 0:00:20]} 35. Qxd5 {[%emt 0:00:52]} cxd5 {[%emt 0:00:04]} 36. Rxb4 {[%emt 0:00:59]} (36. axb3 $16 Rc8 37. Re5 (37. Rxb4 Ne4 $16)) 36... bxc2 {[%emt 0:00:31]} 37. Rb2 {[%emt 0:00:26]} Rc8 {[%emt 0:00:19]} 38. Rc1 {[%emt 0:00:05]} Ne4 {[%emt 0:00:49]} 39. Rbxc2 {[%emt 0:00:23]} Rxc2 {[%emt 0:00:04]} 40. Rxc2 {[%emt 0:00:08]} d4 {[%emt 0:05:00]} 41. Kg2 {[%emt 0:00:41]} Nc3 {[%emt 0:01:14]} 42. Rd2 $18 {[%emt 0:02:06]} a5 {[%emt 0:08:54]} 43. a3 {[%emt 0:00:46]} Nb5 {[%emt 0:00:10]} 44. a4 {[%emt 0:00:11]} Nd6 {[%emt 0:00:03]} 45. Rxd4 {[%emt 0:00:09]} Nxf5 {[%emt 0:00:05]} 46. Rd8+ {[%emt 0:00:07]} Kh7 {[%emt 0:00:03]} 47. Ra8 {[%emt 0:00:05]} Ne3+ {[%emt 0:00:18]} 48. Kf3 {[%emt 0:00:17]} Nc4 {[%emt 0:00:04]} 49. Ke4 {[%emt 0:00:35]} Kh6 {[%emt 0:05:21]} 50. Kd4 {[%emt 0:00:31]} Nd2 {[%emt 0:00:37]} 51. Kd3 {[%emt 0:00:50]} Nb3 {[%emt 0:00:15]} 52. Kc3 {[%emt 0:00:07]} Nc5 {[%emt 0:00:33]} 53. Rxa5 {[%emt 0:00:08]} Nd7 {[%emt 0:01:19]} 54. Ra8 {[%emt 0:00:46]} g5 {[%emt 0:00:15]} 55. a5 {[%emt 0:00:08]} g4 {[%emt 0:00:03]} 56. a6 {[%emt 0:01:06]} Nb6 {[%emt 0:02:00]} 57. Rb8 {[%emt 0:00:57]} Nd5+ {[%emt 0:00:17]} 58. Kd2 {[%emt 0:00:47]} g3 {[%emt 0:00:48]} 59. a7 {[%emt 0:00:43]} Nc7 {[%emt 0:00:07]} 60. Rg8 {[%emt 0:00:13]} f5 61. Rxg3 {[%emt 0:00:19]} f4 {[%emt 0:00:41]} 62. Rg8 {[%emt 0:00:10]} Kh5 {[%emt 0:00:07]} 63. Ke2 {[%emt 0:00:12]} Kh6 {[%emt 0:00:09]} 64. Kf3 {[%emt 0:00:07]} Kh7 {[%emt 0:00:02]} 65. Rc8 {[%emt 0:00:07]} 1-0

[Event "HUN-chT Youth 2019"]
[Site "Budapest"]
[Date "2019.10.28"]
[Round "4.2"]
[White "Bodrogi, Bendeguz"]
[Black "Hajdu, Marton Abris"]
[Result "1-0"]
[ECO "A34"]
[WhiteElo "1903"]
[BlackElo "1818"]
[Annotator "NA RC"]
[PlyCount "79"]
[EventDate "2019.10.26"]
[EventType "team-tourn"]
[EventCountry "HUN"]
[SourceTitle "playchess.com"]
[Source "ChessBase"]
[SourceQuality "1"]
[TimeControl "5400+30"]

1. c4 {[%emt 0:00:00]} c5 {[%emt 0:00:00]} 2. Nf3 {[%emt 0:00:13]} Nf6 {[%emt 0:00:24]} 3. Nc3 {[%emt 0:00:44]} d5 {[%emt 0:00:35]} 4. cxd5 Nxd5 {[%emt 0:00:13]} 5. e4 {[%emt 0:02:57]} Nb4 {[%emt 0:01:12]} 6. Bc4 {[%emt 0:01:53]} Nd3+ {[%emt 0:03:18]} 7. Ke2 {[%emt 0:00:59]} Nf4+ {[%emt 0:00:15] A34: Symmetrical English: 2 Nc3, lines with ...d5} 8. Kf1 {[%emt 0:00:15]} Be6 {[%emt 0:06:20]} (8... Ne6 9. d4 cxd4 10. Bxe6 Bxe6 11. Nxd4 Nc6 12. Nxe6 Qxd1+ 13. Nxd1 fxe6 14. Bd2 e5 15. f3 {½-½ (58) Aronian,L (2765)-Vachier Lagrave,M (2781) London 2018}) 9. Bb5+ {[%emt 0:01:23]} Nc6 {[%emt 0:05:06]} 10. d4 {[%emt 0:01:05]} cxd4 {[%emt 0:06:22]} 11. Nxd4 {[%emt 0:00:53]} Ng6 {[%emt 0:05:52]} 12. Nxe6 $146 {[%emt 0:04:36]} ({But not Predecessor:} 12. Nxc6 Qxd1+ 13. Nxd1 a6 $16 14. Ba4 Bd7 15. Nc3 Bxc6 16. Bxc6+ bxc6 {½-½ (68) Royo Onde,M (1882)-Moreno Gracia,D (2222) Aragon 2008}) 12... Qxd1+ {[%emt 0:02:35]} 13. Nxd1 {[%emt 0:01:00]} fxe6 {[%emt 0:00:10]} 14. Ne3 {[%emt 0:00:54]} ({White should play} 14. Bxc6+ $16 bxc6 15. Be3) 14... O-O-O {[%emt 0:01:11] [#]} 15. b3 {[%emt 0:00:51]} (15. Bxc6 $1 $18 bxc6 16. b3) 15... Nd4 {[%emt 0:00:54]} 16. Bc4 {[%emt 0:02:08]} Ne5 {[%emt 0:17:06]} 17. Bb2 {[%emt 0:00:50]} Nec6 {[%emt 0:02:53]} 18. Rc1 {[%emt 0:01:22]} Kb8 {[%emt 0:02:26]} 19. f4 {[%emt 0:05:37]} (19. Rd1 $16) 19... g5 {[%emt 0:13:22]} 20. f5 {[%emt 0:01:51]} (20. fxg5 $14 {stays ahead.} Bg7 21. g3) 20... e5 {[%emt 0:02:13]} 21. Kf2 {[%emt 0:00:58]} (21. Bd5 $16) 21... Bg7 {[%emt 0:01:45]} 22. Rhd1 {[%emt 0:00:19]} Rhf8 {[%emt 0:01:26]} 23. Bd5 {[%emt 0:02:32]} e6 {[%emt 0:05:41]} (23... Nb4 $14) 24. Bxc6 $1 {[%emt 0:00:27]} bxc6 {[%emt 0:00:14]} 25. g4 {[%emt 0:00:10]} exf5 {[%emt 0:00:37]} 26. gxf5 {[%emt 0:00:16]} Kb7 {[%emt 0:01:22]} 27. Nc4 {[%emt 0:01:11]} Rf7 {[%emt 0:13:56]} 28. Na5+ {[%emt 0:04:07]} Kb6 {[%emt 0:00:18]} 29. Nxc6 {[%emt 0:00:27]} Nxc6 {[%emt 0:01:47]} 30. Rxc6+ {[%emt 0:00:12]} Kxc6 {[%emt 0:00:05]} 31. Rxd8 {[%emt 0:00:08]} Rc7 {[%emt 0:00:43]} 32. Rd5 {[%emt 0:00:31]} Kb6 {[%emt 0:00:16]} 33. Bxe5 {[%emt 0:00:35]} Rc2+ {[%emt 0:00:07]} 34. Kg3 {[%emt 0:01:03]} Bxe5+ {[%emt 0:00:24]} 35. Rxe5 {[%emt 0:00:03]} Rxa2 {[%emt 0:00:07]} 36. f6 {[%emt 0:00:16]} Rb2 {[%emt 0:00:16]} 37. f7 {[%emt 0:00:14]} Rxb3+ {[%emt 0:00:04]} 38. Kg4 {[%emt 0:00:21]} h5+ {[%emt 0:00:13]} 39. Kxg5 {[%emt 0:00:32]} Rf3 {[%emt 0:00:05]} 40. Rf5 {[%emt 0:00:03]} 1-0

[Event "HUN-chT Youth 2019"]
[Site "Budapest"]
[Date "2019.10.28"]
[Round "4.3"]
[White "Nagy, Botond"]
[Black "Onodi, Miklos"]
[Result "0-1"]
[ECO "D10"]
[WhiteElo "1281"]
[BlackElo "1548"]
[Annotator "NA RC"]
[PlyCount "116"]
[EventDate "2019.10.26"]
[EventType "team-tourn"]
[EventCountry "HUN"]
[SourceTitle "playchess.com"]
[Source "ChessBase"]
[SourceQuality "1"]
[TimeControl "5400+30"]

1. d4 d5 2. c4 c6 3. Bf4 dxc4 4. a4 b5 5. e3 Bf5 6. Na3 e5 7. Bxe5 Bb4+ 8. Ke2 Bd3+ 9. Kf3 Qd5+ 10. Kg3 Bxf1 11. Qxf1 f6 12. Bxb8 Rxb8 13. Qe2 Bd6+ 14. f4 g5 15. Nh3 Qe4 16. Qf3 gxf4+ 17. Nxf4 Bxf4+ 18. Qxf4 Qg6+ 19. Kf3 Rb7 20. Qe4+ Ne7 21. Qxg6+ hxg6 22. axb5 cxb5 23. Nc2 Nd5 24. e4 Nb6 25. Na3 Na4 26. Nxb5 Rxb5 27. Rxa4 Rb3+ 28. Kf4 Rh4+ 29. g4 g5+ 30. Kf5 Rf3+ 31. Ke6 Rxg4 32. Rxc4 Rxe4+ 33. Kd5 Rff4 34. Ra1 Re7 35. Rc8+ Kf7 36. Rh8 Kg7 37. Rh3 Rd7+ 38. Kc5 Rfxd4 39. Rxa7 Rxa7 40. Kxd4 g4 41. Rg3 Kh6 42. b4 f5 43. Ke5 Kg5 44. Rg1 Ra2 45. Rf1 Re2+ 46. Kd4 Rxh2 47. Ke5 Kg6 48. Kf4 Rb2 49. Kg3 Rb3+ 50. Kg2 Rxb4 51. Kg3 Kg5 52. Rf2 f4+ 53. Kg2 g3 54. Ra2 Kg4 55. Kf1 f3 56. Ra1 Rb2 57. Rc1 Kh3 58. Kg1 f2+ 0-1

[Event "HUN-chT Youth 2019"]
[Site "Budapest"]
[Date "2019.10.28"]
[Round "4.4"]
[White "Daroczi, Donat"]
[Black "Toth, Nikoletta"]
[Result "1-0"]
[ECO "C46"]
[WhiteElo "1976"]
[BlackElo "1965"]
[Annotator "NA RC"]
[PlyCount "47"]
[EventDate "2019.10.26"]
[EventType "team-tourn"]
[EventCountry "HUN"]
[SourceTitle "playchess.com"]
[Source "ChessBase"]
[SourceQuality "1"]
[TimeControl "5400+30"]

{[%evp 8,45,1,-12,45,37,60,47,75,63,71,54,32767,46,95,81,209,196,190,183,211,202,321,32767,32767,331,427,475,32767,754,32767,815,828,875,32767,32767,29990,1284,32767,1212]} 1. e4 {[%emt 0:00:00]} e5 {[%emt 0:00:00]} 2. Nf3 {[%emt 0:00:00]} Nc6 {[%emt 0:00:00]} 3. Nc3 {[%emt 0:00:19]} Bb4 {[%emt 0:13:01]} 4. d4 {[%emt 0:00:26]} exd4 {[%emt 0:02:18]} 5. Nxd4 {[%emt 0:00:04]} Bxc3+ {[%emt 0:04:38]} (5... Nge7 6. Nxc6 Nxc6 7. Qd3 O-O 8. Bd2 d6 9. O-O-O f5 10. f4 Kh8 11. g3 fxe4 12. Qxe4 Bf5 {1-0 (39) Korley,K (2453)-Wang,K (2442) Charlotte 2018}) 6. bxc3 {[%emt 0:00:02] C46: 3 Nc3: Unusual Black 3rd moves} d6 {[%emt 0:14:14]} 7. Bd3 {[%emt 0:06:57]} h6 $146 {[%emt 0:01:29]} ({Predecessor:} 7... Nge7 8. O-O O-O 9. Rb1 b6 10. f4 Nxd4 11. cxd4 f5 12. d5 fxe4 13. Bxe4 {½-½ (37) Zhurikhin,A (2315)-Lukovnikov,A (2278) Tambov 2013}) 8. O-O {[%emt 0:02:16]} Nf6 {[%emt 0:00:18]} 9. h3 {[%emt 0:01:35]} O-O {[%emt 0:00:39]} 10. f4 {[%emt 0:01:36]} Nh7 {[%emt 0:09:25]} 11. Qf3 {[%emt 0:03:04]} f5 {[%emt 0:07:47]} (11... Re8 $16) 12. exf5 {[%emt 0:04:03]} Nxd4 {[%emt 0:01:13]} 13. cxd4 {[%emt 0:00:01]} d5 {[%emt 0:04:53]} 14. Ba3 {[%emt 0:06:13]} Re8 {[%emt 0:02:52]} (14... Rf7 {is a better defense.} 15. f6 Nxf6) 15. Rae1 {[%emt 0:00:26]} Nf6 {[%emt 0:00:19]} 16. Re5 {[%emt 0:00:53]} c6 {[%emt 0:02:08]} 17. Rfe1 {[%emt 0:00:22]} Rxe5 {[%emt 0:08:06]} 18. fxe5 {[%emt 0:00:19]} Qa5 {[%emt 0:02:17]} 19. Re2 {[%emt 0:01:19]} Qxa3 {[%emt 0:02:07]} 20. exf6 {[%emt 0:00:05]} Qc1+ {[%emt 0:00:57]} 21. Kh2 {[%emt 0:00:13]} gxf6 {[%emt 0:05:31]} 22. Qg3+ {[%emt 0:01:26]} (22. Qh5 $142 Bd7 23. Qg6+ {[%mdl 64] Double Attack} Kh8 24. Qxf6+ Kg8 25. Re7 Qf4+ 26. Kg1 Qc1+ 27. Bf1) 22... Qg5 {[%emt 0:00:30]} 23. Re8+ $18 {[%emt 0:00:52]} Kf7 {[%emt 0:00:20]} 24. Qe1 {[%emt 0:00:05]} 1-0

[Event "HUN-chT Youth 2019"]
[Site "Budapest"]
[Date "2019.10.28"]
[Round "4.4"]
[White "Kerekes, Laszlo Fulop"]
[Black "Nagy, Levente"]
[Result "0-1"]
[ECO "B30"]
[WhiteElo "1369"]
[BlackElo "2092"]
[Annotator "NA RC"]
[PlyCount "64"]
[EventDate "2019.10.26"]
[EventType "team-tourn"]
[EventCountry "HUN"]
[SourceTitle "playchess.com"]
[Source "ChessBase"]
[SourceQuality "1"]
[TimeControl "5400+30"]

{[%evp 23,62,-185,-191,-299,32767,-108,0,-21,0,32767,32767,32767,32767,-1204,32767,-1515,-1825,32767,-2063,32767,32767,32767,32767,-29988,-29991,32767,-29992,-29993,-29993,-29993,-29992,-29992,-29992,-29994,-29993,-29994,32767,32767,-29996,-29996,-29997]} 1. e4 {[%emt 0:00:00]} c5 {[%emt 0:00:00]} 2. Nf3 {[%emt 0:00:00]} Nc6 {[%emt 0:00:35]} 3. b4 cxb4 {[%emt 0:01:36]} 4. d4 {[%emt 0:01:23]} d5 {[%emt 0:03:01]} 5. e5 {[%emt 0:02:26]} (5. exd5 Qxd5 6. c4 bxc3 7. Nxc3 Qa5 8. d5 Qxc3+ 9. Bd2 Qa3 10. dxc6 bxc6 11. Qc2 Bd7 12. Ne5 Nf6 13. Nxd7 Nxd7 14. Qxc6 Rd8 15. Bb5 e6 16. O-O Be7 17. Qb7 a6 18. Bc6 O-O 19. Bxd7 Qd6 20. Ba4 Rb8 21. Qa7 Bf6 22. Rad1 {1-0 (22) Bellahcene,B (2550)-Arab,A (2485) Casablanca 2019}) 5... Bg4 {[%emt 0:01:19]} 6. Bb2 {[%emt 0:02:31] B30: Sicilian: 2...Nc6 3 Bb5, lines without ...g6} e6 {[%emt 0:05:00]} 7. h3 $146 {[%emt 0:01:03]} ({Predecessor:} 7. a3 f6 8. Bb5 a6 9. Bxc6+ bxc6 10. axb4 Bxb4+ 11. c3 Be7 {0-1 (26) Sanchez,E (1760)-Del Rosario Moreno,C (2046) Santo Domingo 2015}) 7... Bxf3 {[%emt 0:00:48]} 8. Qxf3 {[%emt 0:00:39]} Nge7 {[%emt 0:01:37]} 9. a3 {[%emt 0:01:41]} Nf5 {[%emt 0:01:29]} 10. Bb5 {[%emt 0:02:32]} Qb6 {[%emt 0:03:18]} 11. Bxc6+ {[%emt 0:02:09]} Qxc6 {[%emt 0:00:43]} 12. Qd3 {[%emt 0:04:13]} Rc8 {[%emt 0:01:53]} 13. O-O {[%emt 0:06:11]} (13. c3 $142 bxc3 14. Nxc3) 13... bxa3 {[%emt 0:05:13]} 14. Nxa3 {[%emt 0:02:01]} Bxa3 {[%emt 0:01:27]} (14... Be7 $17) 15. Bxa3 {[%emt 0:02:00]} Qxc2 {[%emt 0:03:48]} 16. Qb5+ {[%emt 0:01:34]} Qc6 {[%emt 0:04:21]} 17. g4 {[%emt 0:02:25]} Qxb5 {[%emt 0:00:11]} 18. gxf5 {[%emt 0:01:31]} Qd3 {[%emt 0:00:43]} 19. Bd6 {[%emt 0:01:19]} Qxf5 {[%emt 0:01:28]} 20. f4 {[%emt 0:01:59]} Qxh3 {[%emt 0:00:51]} (20... Qg6+ $142 21. Kh1 Rc2 22. Rf2 Rxf2 23. Rg1 {[#]} Qe4+ $1 {[%mdl 576] Double Attack} 24. Rg2 Qxg2#) 21. Rac1 {[%emt 0:01:03]} Rxc1 {[%emt 0:00:16]} 22. Rxc1 {[%emt 0:00:20]} Qe3+ {[%emt 0:00:03]} 23. Kg2 {[%emt 0:01:21]} Qxc1 {[%emt 0:00:08]} 24. Kf3 {[%emt 0:00:28]} Kd7 {[%emt 0:00:33]} 25. Kg3 {[%emt 0:00:36]} Rc8 {[%emt 0:00:17]} 26. Bc5 {[%emt 0:00:36]} Rxc5 {[%emt 0:00:14]} 27. dxc5 {[%emt 0:00:38]} f6 {[%emt 0:00:35]} 28. Kg4 {[%emt 0:00:56] [#]} h5+ $1 {[%emt 0:00:41]} 29. Kxh5 {[%emt 0:00:26]} Qxf4 {[%emt 0:00:14]} 30. Kg6 {[%emt 0:00:42]} fxe5 {[%emt 0:01:11]} 31. c6+ {[%emt 0:01:03]} Ke7 {[%emt 0:01:01]} 32. cxb7 {[%emt 0:01:17]} Qh6# {[%emt 0:00:10]} 0-1